fUSD/lending_fUSD_20251119
["ID","MTS","AMOUNT","RATE_DAILY","PERIOD"]
[394391884,1763523039876,-1885.39428839,0.00039979,15]
[394391885,1763523039885,-79936.44159,0.0003998,2]
[394391886,1763523039894,-339.46098971,0.0003999,34]
[394391887,1763523039904,-8007.24682841,0.00039999,2]
[394391888,1763523039914,-2300.81494301,0.0004,2]
[394391889,1763523039923,-186.46505556,0.0004,30]
[394391890,1763523040136,-1007.92064577,0.0004,120]
[394391891,1763523040146,-7300.79785155,0.0004,120]
[394391892,1763523040155,-166.66,0.00040016,30]
[394391893,1763523040165,-847.06573661,0.00040064,15]
[394391894,1763523040174,-168.0,0.00040113,2]
[394391895,1763523040183,-162.6,0.00040147,2]
[394391896,1763523040192,-345.15057782,0.00040221,5]
[394391897,1763523040202,-1885.39428839,0.00040228,15]
[394391898,1763523040211,-258.33,0.00040229,30]
[394391899,1763523040220,-400.0,0.00040258,5]
[394391900,1763523040229,-1492.9074485,0.00040287,2]
[394391901,1763523040241,-847.06573661,0.00040301,15]
[394391902,1763523040250,-1467.7429,0.00040319,30]
[394391903,1763523040261,-219.01993209,0.00040323,2]
[394391904,1763523040270,-152.0,0.00040411,3]
[394391905,1763523040280,-1885.39428839,0.00040477,15]
[394391906,1763523040289,-258.33,0.00040503,30]
[394391907,1763523040299,-847.06573661,0.00040538,15]
[394391908,1763523040309,-728.1004609,0.00040565,2]
[394391909,1763523040320,-219.01993209,0.00040567,2]
[394391910,1763523040330,-162.91919544,0.00040603,30]
[394391911,1763523040339,-168.0,0.00040676,7]
[394391912,1763523040348,-500.0,0.00040725,2]
[394391913,1763523040357,-1492.9074485,0.00040726,2]
[394391914,1763523040366,-1885.39428839,0.00040726,15]
[394391915,1763523040374,-168.0,0.00040761,2]
[394391916,1763523040385,-847.06573661,0.00040774,15]
[394391917,1763523040394,-258.34,0.00040777,30]
[394391918,1763523040403,-158.3,0.00040783,14]
[394391919,1763523040412,-168.0,0.00040799,120]
[394391920,1763523040421,-157.01,0.000408,2]
[394391921,1763523040429,-166.66,0.00040808,30]
[394391922,1763523040438,-219.01993209,0.00040939,2]
[394391923,1763523040447,-205.29007824,0.00040942,5]
[394391924,1763523040456,-205.0,0.00040966,120]
[394391925,1763523040465,-205.0,0.00040966,120]
[394391926,1763523040474,-205.0,0.00040966,120]
[394391927,1763523040483,-205.0,0.00040966,120]
[394391928,1763523040492,-205.0,0.00040966,120]
[394391929,1763523040501,-205.0,0.00040966,120]
[394391930,1763523040510,-205.0,0.00040966,120]
[394391931,1763523040519,-153.0,0.00040966,120]
[394391932,1763523040528,-153.0,0.00040966,120]
[394391933,1763523040537,-153.0,0.00040966,120]
[394391934,1763523040546,-153.0,0.00040966,120]
[394391935,1763523040555,-201.0,0.00040966,120]
[394391936,1763523040564,-201.0,0.00040966,120]
[394391937,1763523040573,-201.0,0.00040966,120]
[394391938,1763523040581,-201.0,0.00040966,120]
[394391939,1763523040591,-201.0,0.00040966,120]
[394391940,1763523040601,-201.0,0.00040966,120]
[394391941,1763523040609,-153.0,0.00040966,120]
[394391942,1763523040618,-153.0,0.00040966,120]
[394391943,1763523040627,-153.0,0.00040966,120]
[394391944,1763523040635,-153.0,0.00040966,120]
[394391945,1763523040643,-153.0,0.00040966,120]
[394391946,1763523040652,-153.0,0.00040966,120]
[394391947,1763523040661,-153.0,0.00040966,120]
[394391948,1763523040670,-153.0,0.00040966,120]
[394391949,1763523040679,-153.0,0.00040966,120]
[394391950,1763523040689,-153.0,0.00040966,120]
[394391951,1763523040698,-500.0,0.00040973,5]
[394391952,1763523040706,-500.0,0.00040973,5]
[394391953,1763523040716,-533.12509319,0.00040973,5]
[394391954,1763523040725,-1492.9074485,0.00040974,2]
[394391955,1763523040733,-1885.39428839,0.00040975,15]
[394391956,1763523040743,-501.47898047,0.00040988,5]
[394391957,1763523040751,-502.11222657,0.00040988,5]
[394391958,1763523040761,-503.34564414,0.00040988,5]
[394391959,1763523040771,-181.41586634,0.00041,2]
[394391960,1763523040780,-847.06573661,0.00041011,15]
[394391961,1763523040789,-1000.0,0.00041016,2]
[394391962,1763523040798,-500.0,0.00041095,2]
[394391963,1763523040807,-607.84,0.00041095,2]
[394391964,1763523040816,-502.58141552,0.00041095,2]
[394391965,1763523040825,-3730.28,0.00041095,2]
[394391966,1763523040834,-500.0,0.00041095,2]
[394391967,1763523040843,-300.0,0.00041095,2]
[394391968,1763523040852,-300.99786132,0.00041095,2]
[394391969,1763523040861,-154.88,0.00041096,2]
[394391970,1763523040870,-250.7,0.00041096,120]
[394391971,1763523040879,-168.0,0.00041121,2]
[394391972,1763523040888,-168.0,0.00041125,7]
[394391973,1763523040897,-1885.39428839,0.00041224,15]
[394391974,1763523040906,-168.0,0.00041241,7]
[394391975,1763523040919,-847.06573661,0.00041248,15]
[394391976,1763523040928,-166.85,0.00041267,2]
[394391977,1763523040937,-219.01993209,0.00041281,2]
[394391978,1763523040947,-1492.9074485,0.00041317,2]
[394391979,1763523040956,-607.84,0.00041369,2]
[394391980,1763523040965,-3730.28,0.00041369,2]
[394391981,1763523040975,-300.0,0.00041369,2]
[394391982,1763523040984,-1000.0,0.00041374,2]
[394391983,1763523040993,-443.78565574,0.000414,2]
[394391984,1763523041002,-593.89617414,0.000414,2]
[394391985,1763523041011,-158.3,0.00041419,14]
[394391986,1763523041021,-219.01993211,0.00041458,2]
[394391987,1763523041030,-1885.39428839,0.00041473,15]
[394391988,1763523041039,-847.06573661,0.00041484,15]
[394391989,1763523041048,-1492.90744854,0.00041512,2]
[394391990,1763523041058,-389.86648923,0.00041521,10]
[394391991,1763523041068,-1189.27622,0.0004159,10]
[394391992,1763523041077,-162.97952069,0.0004159,7]
[394391993,1763523041087,-166.66,0.00041601,30]
[394391994,1763523041096,-822.0,0.00041643,2]
[394391995,1763523041105,-1600.0,0.00041643,2]
[394391996,1763523041115,-1276.0,0.00041643,2]
[394391997,1763523041123,-794.0,0.00041643,2]
[394391998,1763523041132,-1191.307,0.00041643,2]
[394391999,1763523041140,-911.442,0.00041643,2]
[394392000,1763523041149,-1605.0,0.00041643,2]
[394392001,1763523041158,-705.0,0.00041643,2]
[394392002,1763523041168,-607.84,0.00041643,2]
[394392003,1763523041177,-3730.28,0.00041643,2]
[394392004,1763523041186,-300.0,0.00041643,2]
[394392005,1763523041196,-225.35,0.00041688,14]
[394392006,1763523041206,-168.0,0.0004169,120]
[394392007,1763523041215,-208.26223599,0.000417,120]
[394392008,1763523041224,-3394.0,0.00041718,7]
[394392009,1763523041235,-847.06573661,0.00041721,15]
[394392010,1763523041246,-1180.33783687,0.00041721,120]
[394392011,1763523041255,-1180.33783687,0.00041722,120]
[394392012,1763523041264,-1885.39428839,0.00041722,15]
[394392013,1763523041274,-1180.33783687,0.00041722,120]
[394392014,1763523041283,-1000.0,0.00041724,30]
[394392015,1763523041293,-1000.0,0.00041724,30]
[394392016,1763523041302,-1000.0,0.00041724,30]
[394392017,1763523041311,-1000.0,0.00041724,30]
[394392018,1763523041322,-368.29621198,0.00041747,38]
[394392019,1763523041331,-1000.0,0.00041755,90]
[394392020,1763523041343,-1000.0,0.00041755,90]
[394392021,1763523041353,-1000.0,0.00041755,90]
[394392022,1763523041362,-1000.0,0.00041755,90]
[394392023,1763523041371,-1000.0,0.00041755,90]
[394392024,1763523041380,-1000.0,0.00041755,90]
[394392025,1763523041390,-150.0,0.000418,60]
[394392026,1763523041400,-790.52223395,0.000418,30]
[394392027,1763523041409,-162.6,0.00041804,2]
[394392028,1763523041418,-500.0,0.00041807,2]
[394392029,1763523041427,-150.0,0.00041808,60]
[394392030,1763523041437,-203.98959142,0.00041808,60]
[394392031,1763523041446,-150.0,0.00041808,60]
[394392032,1763523041455,-150.0,0.00041808,60]
[394392033,1763523041464,-150.0,0.00041808,60]
[394392034,1763523041473,-150.0,0.00041808,60]
[394392035,1763523041483,-201.45395189,0.00041808,60]
[394392036,1763523041492,-150.0,0.00041808,60]
[394392037,1763523041501,-150.0,0.00041808,60]
[394392038,1763523041510,-500.0,0.00041808,60]
[394392039,1763523041519,-203.23919313,0.00041808,30]
[394392040,1763523041528,-500.0,0.00041808,60]
[394392041,1763523041537,-500.0,0.00041808,2]
[394392042,1763523041546,-958.0,0.00041808,60]
[394392043,1763523041556,-500.0,0.00041808,60]
[394392044,1763523041566,-500.0,0.00041808,60]
[394392045,1763523041575,-500.0,0.00041808,60]
[394392046,1763523041584,-786.0,0.00041808,120]
[394392047,1763523041593,-500.0,0.00041808,60]
[394392048,1763523041603,-150.0,0.00041808,2]
[394392049,1763523041612,-159.33028222,0.00041808,60]
[394392050,1763523041622,-500.0,0.00041808,60]
[394392051,1763523041630,-452.0,0.00041808,60]
[394392052,1763523041639,-434.0,0.00041808,60]
[394392053,1763523041648,-150.0,0.00041808,60]
[394392054,1763523041657,-150.0,0.00041808,2]
[394392055,1763523041666,-500.0,0.00041808,60]
[394392056,1763523041676,-500.0,0.00041808,60]
[394392057,1763523041685,-500.0,0.00041808,60]
[394392058,1763523041693,-500.0,0.00041808,60]
[394392059,1763523041702,-300.0,0.00041808,30]
[394392060,1763523041711,-205.28,0.00041808,30]
[394392061,1763523041721,-301.14,0.00041808,30]
[394392062,1763523041730,-416.99,0.00041808,30]
[394392063,1763523041740,-1209.94,0.00041808,30]
[394392064,1763523041748,-277.46,0.00041808,30]
[394392065,1763523041757,-177.45,0.00041808,30]
[394392066,1763523041767,-561.77,0.00041808,30]
[394392067,1763523041776,-169.55,0.00041808,30]
[394392068,1763523041786,-150.0,0.00041808,30]
[394392069,1763523041795,-177.45,0.00041808,30]
[394392070,1763523041804,-1209.94,0.00041808,30]
[394392071,1763523041813,-550.51,0.00041808,30]
[394392072,1763523041823,-416.99,0.00041808,30]
[394392073,1763523041832,-151.12,0.00041808,30]
[394392074,1763523041843,-416.99,0.00041808,30]
[394392075,1763523041852,-550.51,0.00041808,30]
[394392076,1763523041862,-169.55,0.00041808,30]
[394392077,1763523041871,-1209.94,0.00041808,30]
[394392078,1763523041880,-177.45,0.00041808,30]
[394392079,1763523041890,-150.0,0.00041808,30]
[394392080,1763523041899,-150.0,0.00041808,30]
[394392081,1763523041909,-719.03,0.00041808,30]
[394392082,1763523041918,-161.10398527,0.00041808,30]
[394392083,1763523041928,-203.61955083,0.00041812,7]
[394392084,1763523041937,-1273.255428,0.00041814,120]
[394392085,1763523041946,-200.0,0.00041814,120]
[394392086,1763523041955,-359.2910566,0.00041818,120]
[394392087,1763523041965,-500.0,0.0004182,2]
[394392088,1763523041975,-500.0,0.0004182,2]
[394392089,1763523041984,-500.0,0.0004182,30]
[394392090,1763523041994,-500.0,0.0004182,7]
[394392091,1763523042003,-500.0,0.0004182,30]
[394392092,1763523042012,-6307.7638791,0.00041821,2]
[394392093,1763523042022,-368914.7493793,0.00041821,2]
[394392094,1763523042031,-200.0,0.00041821,7]
[394392095,1763523042040,-12590.395347,0.00041821,2]
[394392096,1763523042049,-151.0,0.00041821,120]
[394392097,1763523042059,-151.0,0.00041821,120]
[394392098,1763523042068,-151.0,0.00041821,120]
[394392099,1763523042077,-160.524456,0.00041821,120]
[394392100,1763523042087,-151.0,0.00041821,120]
[394392101,1763523042096,-151.0,0.00041821,120]
[394392102,1763523042106,-151.0,0.00041821,120]
[394392103,1763523042115,-151.0,0.00041821,120]
[394392104,1763523042125,-151.0,0.00041821,120]
[394392105,1763523042135,-151.0,0.00041821,120]
[394392106,1763523042144,-158.918337,0.00041821,120]
[394392107,1763523042153,-151.0,0.00041821,120]
[394392108,1763523042163,-154.897335,0.00041821,120]
[394392109,1763523042172,-151.0,0.00041821,120]
[394392110,1763523042182,-151.0,0.00041821,120]
[394392111,1763523042191,-159.230608,0.00041821,120]
[394392112,1763523042200,-151.0,0.00041821,120]
[394392113,1763523042209,-151.0,0.00041821,120]
[394392114,1763523042218,-151.0,0.00041821,120]
[394392115,1763523042227,-151.0,0.00041821,120]
[394392116,1763523042237,-151.0,0.00041821,120]
[394392117,1763523042248,-151.0,0.00041821,120]
[394392118,1763523042256,-151.0,0.00041821,120]
[394392119,1763523042265,-151.0,0.00041821,120]
[394392120,1763523042274,-151.0,0.00041821,120]
[394392121,1763523042284,-151.0,0.00041821,120]
[394392122,1763523042293,-151.0,0.00041821,120]
[394392123,1763523042302,-151.0,0.00041821,120]
[394392124,1763523042311,-151.0,0.00041821,120]
[394392125,1763523042321,-151.0,0.00041821,120]
[394392126,1763523042331,-151.0,0.00041821,120]
[394392127,1763523042341,-151.0,0.00041821,120]
[394392128,1763523042350,-151.0,0.00041821,120]
[394392129,1763523042359,-151.0,0.00041821,120]
[394392130,1763523042369,-151.0,0.00041821,120]
[394392131,1763523042378,-151.0,0.00041821,120]
[394392132,1763523042389,-200.0,0.00041821,7]
[394392133,1763523042398,-151.0,0.00041821,120]
[394392134,1763523042407,-151.0,0.00041821,120]
[394392135,1763523042416,-151.0,0.00041821,120]
[394392136,1763523042424,-151.0,0.00041821,120]
[394392137,1763523042434,-151.0,0.00041821,120]
[394392138,1763523042442,-151.0,0.00041821,120]
[394392139,1763523042451,-151.0,0.00041821,120]
[394392140,1763523042460,-151.0,0.00041821,120]
[394392141,1763523042470,-151.0,0.00041821,120]
[394392142,1763523042479,-151.0,0.00041821,120]
[394392143,1763523042489,-151.0,0.00041821,120]
[394392144,1763523042498,-151.0,0.00041821,120]
[394392145,1763523042507,-151.0,0.00041821,120]
[394392146,1763523042517,-163.500584,0.00041821,120]
[394392147,1763523042526,-151.0,0.00041821,120]
[394392148,1763523042535,-151.0,0.00041821,120]
[394392149,1763523042544,-151.0,0.00041821,120]
[394392150,1763523042553,-237.273305,0.00041821,120]
[394392151,1763523042562,-156.937698,0.00041821,120]
[394392152,1763523042571,-151.0,0.00041821,120]
[394392153,1763523042580,-151.0,0.00041821,120]
[394392154,1763523042590,-151.0,0.00041821,120]
[394392155,1763523042600,-151.0,0.00041821,120]
[394392156,1763523042609,-151.0,0.00041821,120]
[394392157,1763523042618,-151.0,0.00041821,120]
[394392158,1763523042627,-156.46601,0.00041821,120]
[394392159,1763523042636,-151.0,0.00041821,120]
[394392160,1763523042645,-151.0,0.00041821,120]
[394392161,1763523042655,-151.0,0.00041821,120]
[394392163,1763523042663,-182.717014,0.00041821,120]
[394392166,1763523042672,-151.0,0.00041821,120]
[394392167,1763523042681,-151.0,0.00041821,120]
[394392169,1763523042690,-164.319033,0.00041821,120]
[394392170,1763523042698,-151.0,0.00041821,120]
[394392171,1763523042707,-151.0,0.00041821,120]
[394392172,1763523042716,-151.0,0.00041821,120]
[394392173,1763523042725,-160.36581,0.00041821,120]
[394392174,1763523042734,-151.0,0.00041821,120]
[394392175,1763523042743,-151.0,0.00041821,120]
[394392176,1763523042751,-151.0,0.00041821,120]
[394392177,1763523042759,-151.0,0.00041821,120]
[394392178,1763523042768,-151.0,0.00041821,120]
[394392179,1763523042779,-151.0,0.00041821,120]
[394392180,1763523042789,-297.924645,0.00041821,120]
[394392181,1763523042798,-151.0,0.00041821,14]
[394392182,1763523042808,-151.0,0.00041821,14]
[394392183,1763523042818,-151.0,0.00041821,120]
[394392185,1763523042827,-151.0,0.00041821,120]
[394392186,1763523042838,-151.0,0.00041821,120]
[394392187,1763523042848,-151.0,0.00041821,120]
[394392188,1763523042858,-151.0,0.00041821,120]
[394392189,1763523042867,-230.7546344,0.00041821,120]
[394392190,1763523042877,-151.0,0.00041821,120]
[394392191,1763523042886,-191.681252,0.00041821,120]
[394392192,1763523042895,-151.0,0.00041821,120]
[394392193,1763523042917,-157.31533,0.00041821,120]
[394392194,1763523042929,-151.0,0.00041821,120]
[394392195,1763523042938,-151.0,0.00041821,120]
[394392196,1763523042947,-151.0,0.00041821,120]
[394392197,1763523042957,-151.0,0.00041821,120]
[394392198,1763523042966,-151.0,0.00041821,120]
[394392199,1763523042975,-9406.2652251,0.00041821,2]
[394392200,1763523042985,-151.0,0.00041821,120]
[394392201,1763523042994,-151.0,0.00041821,120]
[394392202,1763523043003,-151.0,0.00041821,120]
[394392203,1763523043012,-151.0,0.00041821,120]
[394392204,1763523043022,-151.0,0.00041821,120]
[394392205,1763523043031,-151.0,0.00041821,120]
[394392206,1763523043039,-151.0,0.00041821,120]
[394392207,1763523043048,-151.0,0.00041821,120]
[394392208,1763523043057,-179.083557,0.00041821,120]
[394392209,1763523043066,-151.0,0.00041821,120]
[394392210,1763523043075,-151.0,0.00041821,120]
[394392211,1763523043084,-151.0,0.00041821,120]
[394392212,1763523043094,-151.0,0.00041821,120]
[394392213,1763523043103,-151.0,0.00041821,120]
[394392214,1763523043112,-151.0,0.00041821,120]
[394392215,1763523043121,-151.0,0.00041821,120]
[394392216,1763523043130,-151.0,0.00041821,120]
[394392217,1763523043139,-180.789459,0.00041821,120]
[394392218,1763523043148,-151.0,0.00041821,120]
[394392219,1763523043157,-298.44475063,0.00041821,120]
[394392220,1763523043166,-151.0,0.00041821,120]
[394392221,1763523043175,-151.0,0.00041821,120]
[394392222,1763523043183,-151.0,0.00041821,120]
[394392223,1763523043192,-151.0,0.00041821,120]
[394392224,1763523043202,-151.0,0.00041821,120]
[394392225,1763523043211,-151.0,0.00041821,120]
[394392226,1763523043220,-168.214243,0.00041821,120]
[394392227,1763523043230,-194.485825,0.00041821,120]
[394392228,1763523043244,-151.0,0.00041821,120]
[394392229,1763523043253,-151.0,0.00041821,120]
[394392230,1763523043262,-151.0,0.00041821,120]
[394392231,1763523043271,-151.0,0.00041821,120]
[394392232,1763523043281,-151.0,0.00041821,120]
[394392233,1763523043290,-151.0,0.00041821,120]
[394392234,1763523043298,-151.0,0.00041821,120]
[394392235,1763523043307,-151.0,0.00041821,120]
[394392236,1763523043318,-151.0,0.00041821,120]
[394392237,1763523043327,-151.0,0.00041821,120]
[394392238,1763523043337,-285.330623,0.00041821,120]
[394392239,1763523043346,-151.0,0.00041821,120]
[394392240,1763523043355,-151.0,0.00041821,120]
[394392241,1763523043364,-151.0,0.00041821,120]
[394392242,1763523043374,-151.0,0.00041821,120]
[394392243,1763523043384,-152.881792,0.00041821,120]
[394392244,1763523043393,-151.0,0.00041821,120]
[394392245,1763523043402,-263.285936,0.00041821,120]
[394392246,1763523043411,-151.0,0.00041821,120]
[394392247,1763523043420,-151.0,0.00041821,120]
[394392248,1763523043429,-151.0,0.00041821,120]
[394392249,1763523043438,-151.0,0.00041821,120]
[394392250,1763523043447,-151.0,0.00041821,120]
[394392251,1763523043456,-151.0,0.00041821,120]
[394392252,1763523043465,-151.0,0.00041821,120]
[394392253,1763523043474,-151.0,0.00041821,120]
[394392254,1763523043484,-265.852755,0.00041821,120]
[394392255,1763523043493,-12489.352178,0.00041821,2]
[394392256,1763523043502,-151.0,0.00041821,120]
[394392257,1763523043511,-151.0,0.00041821,120]
[394392258,1763523043520,-151.0,0.00041821,120]
[394392259,1763523043528,-151.0,0.00041821,120]
[394392260,1763523043537,-151.0,0.00041821,120]
[394392261,1763523043546,-200.0,0.00041821,7]
[394392262,1763523043555,-151.0,0.00041821,120]
[394392263,1763523043565,-151.0,0.00041821,120]
[394392264,1763523043574,-164.742128,0.00041821,120]
[394392265,1763523043583,-5484.1901706,0.00041821,2]
[394392266,1763523043594,-294.111238,0.00041821,120]
[394392267,1763523043603,-294.111238,0.00041821,120]
[394392268,1763523043612,-294.111238,0.00041821,120]
[394392270,1763523043621,-294.111238,0.00041821,120]
[394392271,1763523043631,-294.111238,0.00041821,120]
[394392272,1763523043641,-294.111238,0.00041821,120]
[394392273,1763523043650,-294.111238,0.00041821,120]
[394392274,1763523043658,-294.111238,0.00041821,120]
[394392275,1763523043667,-294.111238,0.00041821,120]
[394392276,1763523043675,-294.111238,0.00041821,120]
[394392277,1763523043684,-294.111238,0.00041821,120]
[394392278,1763523043693,-294.111238,0.00041821,120]
[394392279,1763523043702,-294.111238,0.00041821,120]
[394392280,1763523043711,-294.111238,0.00041821,120]
[394392281,1763523043719,-294.111238,0.00041821,120]
[394392282,1763523043859,-294.111238,0.00041821,120]
[394392283,1763523043869,-294.111238,0.00041821,120]
[394392284,1763523043878,-294.111238,0.00041821,120]
[394392285,1763523043887,-294.111238,0.00041821,120]
[394392286,1763523043897,-294.111243,0.00041821,120]
[394392287,1763523043906,-1189.27621,0.00041821,11]
[394392288,1763523043915,-1189.27621,0.00041821,11]
[394392289,1763523043924,-124186.279274,0.00041821,2]
[394392290,1763523043933,-5131.3262396,0.00041821,27]
[394392291,1763523043943,-930206.2822629,0.00041822,7]
[394392292,1763523044028,-10059.08529237,0.00041822,7]
[394392293,1763523044052,-575.0,0.00041643,2]
[394392294,1763523044062,-1130.45537717,0.00041822,7]
[394392295,1763523044074,-4497.13481411,0.00041822,7]
[394392296,1763523044095,-603.97311059,0.00041822,7]
[394392301,1763523099118,5145.01460389,0.00041822,69]
[394392324,1763523184028,588.23677892,0.00041822,120]
[394392325,1763523226732,191.94,0.00041822,120]
[394392445,1763523290482,150.02,0.00041822,30]
[394392479,1763523292265,150.02,0.00041822,30]
[394392496,1763523294267,150.02,0.00041822,30]
[394392510,1763523302559,150.02,0.00041822,30]
[394392511,1763523303943,150.02,0.00041822,30]
[394392512,1763523311087,150.02,0.00041822,30]
[394392513,1763523312350,150.02,0.00041822,30]
[394392514,1763523313078,150.02,0.00041822,30]
[394392515,1763523315322,150.02,0.00041822,30]
[394392516,1763523316153,150.02,0.00041822,30]
[394392517,1763523317377,150.02,0.00041822,30]
[394392518,1763523318942,150.02,0.00041822,30]
[394392520,1763523323162,150.02,0.00041822,30]
[394392522,1763523325861,150.02,0.00041822,30]
[394392523,1763523327124,150.02,0.00041822,30]
[394392524,1763523329065,150.02,0.00041822,30]
[394392525,1763523330866,150.02,0.00041822,30]
[394392526,1763523332234,150.02,0.00041822,30]
[394392527,1763523335550,150.02,0.00041822,30]
[394392528,1763523339741,150.02,0.00041822,30]
[394392529,1763523341075,150.02,0.00041822,30]
[394392530,1763523344344,150.02,0.00041822,30]
[394392531,1763523345566,150.02,0.00041822,30]
[394392532,1763523351303,150.02,0.00041822,30]
[394392533,1763523353747,150.02,0.00041822,30]
[394392534,1763523356218,150.02,0.00041822,30]
[394392535,1763523360688,150.02,0.00041822,30]
[394392536,1763523362190,150.02,0.00041822,30]
[394392537,1763523365770,150.02,0.00041822,30]
[394392538,1763523369423,150.02,0.00041822,30]
[394392539,1763523370830,150.02,0.00041822,30]
[394392540,1763523372094,150.02,0.00041822,30]
[394392541,1763523373228,150.02,0.00041822,30]
[394392542,1763523374355,150.02,0.00041822,30]
[394392543,1763523375283,150.02,0.00041822,30]
[394392544,1763523376419,150.02,0.00041822,30]
[394392545,1763523378296,150.02,0.00041822,30]
[394392546,1763523379751,150.02,0.00041822,30]
[394392547,1763523383489,150.02,0.00041822,30]
[394392548,1763523385636,150.02,0.00041822,30]
[394392549,1763523386957,150.02,0.00041822,30]
[394392550,1763523388276,150.02,0.00041822,30]
[394392551,1763523389913,150.02,0.00041822,30]
[394392552,1763523391042,150.02,0.00041822,30]
[394392553,1763523392778,150.02,0.00041822,30]
[394392554,1763523393945,150.02,0.00041822,30]
[394392555,1763523394795,150.02,0.00041822,30]
[394392556,1763523395877,150.02,0.00041822,30]
[394392557,1763523397578,150.02,0.00041822,30]
[394392558,1763523398098,150.02,0.00041822,30]
[394392559,1763523401812,150.02,0.00041822,30]
[394392560,1763523403672,150.02,0.00041822,30]
[394392561,1763523405802,150.02,0.00041822,30]
[394392563,1763523408357,150.02,0.00041822,30]
[394392564,1763523411716,150.02,0.00041822,30]
[394392565,1763523412900,150.02,0.00041822,30]
[394392566,1763523413696,150.02,0.00041822,30]
[394392567,1763523415653,150.02,0.00041822,30]
[394392568,1763523421205,150.02,0.00041822,30]
[394392569,1763523422244,150.02,0.00041822,30]
[394392570,1763523424062,150.02,0.00041822,30]
[394392571,1763523428179,150.02,0.00041822,30]
[394392573,1763523434786,150.02,0.00041822,30]
[394392574,1763523439206,150.02,0.00041822,30]
[394392575,1763523445059,150.02,0.00041822,30]
[394392576,1763523446637,150.02,0.00041822,30]
[394392577,1763523447879,150.02,0.00041822,30]
[394392578,1763523449048,150.02,0.00041822,30]
[394392579,1763523450479,150.02,0.00041822,30]
[394392582,1763523452962,150.02,0.00041822,30]
[394392583,1763523454318,150.02,0.00041822,30]
[394392584,1763523458262,150.02,0.00041821,30]
[394392586,1763523459165,150.02,0.00041821,30]
[394392587,1763523461264,150.02,0.00041821,30]
[394392588,1763523464415,150.02,0.00041821,30]
[394392589,1763523470169,150.02,0.00041821,30]
[394392590,1763523471114,150.02,0.00041821,30]
[394392591,1763523472558,150.02,0.00041821,30]
[394392594,1763523474159,150.02,0.00041821,30]
[394392595,1763523477233,200.02,0.00041821,30]
[394392610,1763523597176,-250.0,0.00017,2]
[394392611,1763523597196,-176.03673408,0.00017,2]
[394392612,1763523597217,-270.58003489,0.00017,2]
[394392613,1763523599398,-255.47068448,0.00017,2]
[394392614,1763523599424,-195.0,0.000187,2]
[394392615,1763523599447,-56.14507506,0.00020412,2]
[394392631,1763523726474,500.0,0.00041821,120]
[394392634,1763523727067,500.0,0.00041821,120]
[394392637,1763523727681,500.0,0.00041821,120]
[394392640,1763523728288,500.0,0.00041821,120]